bitfinex-derivatives/quotes_ETHF0:USTF0_20241004
["timestamp","ask_amount","ask_price","bid_price","bid_amount"]
[1728052250761,3.2078,2358.2,2358.0,0.42414]
[1728052251068,3.2078,2358.2,2357.8,4.58]
[1728052251261,3.2078,2358.2,2358.1,0.42413]
[1728052252068,3.2078,2358.6,2357.8,5.64045]
[1728052252365,3.2078,2358.3,2358.1,0.42413]
[1728052252569,3.2078,2358.3,2357.9,0.42416]
[1728052252771,3.2078,2358.3,2358.2,0.42411]
[1728052252962,3.2078,2358.3,2357.8,4.58]
[1728052253162,3.2078,2358.3,2358.1,0.42412]
[1728052253566,3.2078,2358.3,2358.2,0.42411]
[1728052253763,3.2078,2358.3,2358.1,0.42411]
[1728052253965,3.2078,2358.3,2358.0,0.42413]
[1728052254161,3.2078,2358.3,2357.1,7.92835963]
[1728052254361,3.2078,2358.0,2357.9,0.42416]
[1728052254661,3.6313,2358.3,2357.6,1.06053]
[1728052254862,3.6313,2358.3,2357.8,5.64046]
[1728052255061,3.2078,2358.3,2357.8,5.64046]
[1728052255463,3.2078,2358.3,2358.2,0.42411]
[1728052256265,3.2078,2358.3,2357.8,5.64046]
[1728052256468,3.2078,2358.3,2358.1,0.42412]
[1728052256664,3.2078,2358.3,2357.4,4.58]
[1728052256861,3.2078,2358.3,2357.9,0.42416]
[1728052256862,0.42412,2358.2,2357.9,0.42416]
[1728052257265,3.2078,2358.0,2357.9,0.42416]
[1728052257770,14.50899,2358.0,2356.8,4.58]
[1728052257973,14.50899,2358.0,2357.1,1.06078]
[1728052257974,3.2078,2357.6,2357.1,1.06078]
[1728052258273,3.2078,2357.6,2357.5,0.42424]
[1728052258460,7.4494,2357.6,2357.5,0.42424]
[1728052258665,0.3982,2357.9,2357.8,0.42418]
[1728052258867,0.3982,2357.9,2357.7,0.42419]
[1728052259070,0.3982,2357.9,2357.8,0.42418]
[1728052259365,3.2078,2358.0,2357.4,4.58]
[1728052259561,3.2078,2358.0,2357.7,0.42419]
[1728052259767,3.2078,2358.0,2357.2,1.06073]
[1728052259968,3.2078,2358.0,2357.8,0.42417]
[1728052260167,0.42418,2357.8,2357.6,0.42421]
[1728052260380,0.42418,2357.8,2357.2,1.06073]
[1728052260381,3.63201,2357.7,2357.2,1.06073]
[1728052260672,3.2078,2357.7,2357.3,0.42426]
[1728052260873,0.3982,2358.4,2356.5,7.7878]
[1728052260874,3.2078,2357.4,2356.5,7.7878]
[1728052261067,4.58,2357.9,2356.5,4.58]
[1728052261068,3.2078,2357.1,2356.5,4.58]
[1728052261267,3.2078,2356.8,2356.3,0.7915]
[1728052262179,3.2078,2356.5,2356.2,0.42446]
[1728052262374,3.2078,2356.5,2355.8,5.64136]
[1728052262375,3.2078,2356.5,2355.9,1.06132]
[1728052262680,3.2078,2356.5,2356.4,0.42443]
[1728052263178,3.2078,2356.8,2356.4,14.824]
[1728052263384,2.71298021,2358.5,2356.7,4.58]
[1728052263385,3.2078,2357.4,2356.7,4.58]
[1728052263576,3.2078,2357.7,2357.1,4.58]
[1728052263877,3.2078,2357.7,2357.6,0.42422]
[1728052264072,3.2078,2358.1,2357.5,4.58]
[1728052264271,3.2078,2357.8,2357.3,0.4286]
[1728052264580,3.2078,2357.8,2357.2,4.58]
[1728052264882,3.2078,2357.8,2357.6,0.42421]
[1728052265177,3.2078,2357.8,2357.2,4.58]
[1728052265479,3.2078,2358.1,2357.5,4.58]
[1728052265670,3.2078,2358.1,2357.6,1.06055]
[1728052265871,3.2078,2358.1,2357.5,4.58]
[1728052266072,3.2078,2358.1,2357.9,0.42415]
[1728052266377,3.2078,2358.1,2357.6,0.42422]
[1728052266677,3.2078,2358.1,2357.8,0.42418]
[1728052266873,3.2078,2358.1,2357.5,4.58]
[1728052267073,3.2078,2358.1,2357.8,0.42417]
[1728052267275,3.2078,2358.1,2357.5,4.58]
[1728052267879,3.2078,2358.1,2358.0,0.42415]
[1728052268274,3.2078,2358.1,2357.9,0.42415]
[1728052268476,3.2078,2358.1,2357.5,4.58]
[1728052268683,3.2078,2357.8,2357.4,0.39]
[1728052268869,3.2078,2358.1,2357.4,0.39]
[1728052269075,0.4171,2358.6,2358.1,0.42413]
[1728052269076,3.2078,2358.3,2358.1,0.42413]
[1728052269371,3.2078,2358.3,2358.2,0.42411]
[1728052269571,3.63186,2358.6,2358.1,0.42412]
[1728052269767,3.2078,2358.3,2358.1,0.42413]
[1728052269970,3.2078,2358.3,2358.2,0.42411]
[1728052270173,3.2078,2358.3,2357.8,1.06046]
[1728052270174,3.2078,2358.6,2358.4,0.42406]
[1728052270570,3.2078,2358.6,2357.9,1.4861]
[1728052270770,3.2078,2358.6,2357.9,0.4257]
[1728052270968,3.2078,2358.0,2357.1,7.7878]
[1728052271170,3.2078,2358.0,2356.9,2.26583297]
[1728052271171,3.2078,2357.7,2356.9,1.48654]
[1728052271680,3.2078,2357.7,2357.4,0.42424]
[1728052271980,3.2078,2357.7,2356.9,1.48654]
[1728052272170,3.2078,2357.7,2357.1,1.06078]
[1728052272371,3.2078,2357.7,2357.0,1.48513]
[1728052272573,3.2078,2357.7,2357.5,0.42424]
[1728052272769,3.2078,2357.7,2356.9,1.48654]
[1728052272967,3.2078,2357.7,2357.1,4.58]
[1728052273173,3.2078,2357.7,2357.1,5.64078]
[1728052273377,3.2078,2357.7,2357.1,4.58]
[1728052273580,3.63201,2357.7,2357.1,4.58]
[1728052273774,3.2078,2357.4,2357.1,0.42429]
[1728052273972,3.2078,2357.4,2356.8,0.3876]
[1728052274173,0.4243,2357.2,2356.8,0.42435]
[1728052274477,3.2078,2357.4,2356.6,1.061]
[1728052274672,3.2078,2357.4,2357.3,0.42427]
[1728052274875,3.2078,2357.4,2356.8,5.64091]
[1728052275069,0.4063,2357.7,2356.7,3.2078]
[1728052275070,3.2078,2357.7,2357.1,4.58]
[1728052275277,3.2078,2357.7,2357.1,5.64077]
[1728052275482,3.2078,2357.7,2356.8,4.58]
[1728052275777,3.2078,2357.4,2357.3,0.42427]
[1728052276778,3.2078,2357.4,2356.8,4.58]
[1728052276779,3.63207,2357.4,2356.8,4.58]
[1728052276981,0.42428,2357.3,2356.6,1.06096]
[1728052277181,0.42433,2357.0,2356.7,0.42437]
[1728052277373,3.2078,2357.1,2356.5,6.02833]
[1728052277779,3.2078,2357.1,2356.6,1.061]
[1728052278083,3.2078,2357.4,2356.9,0.42433]
[1728052278273,3.6148,2357.4,2357.1,0.42429]
[1728052278469,3.6148,2357.4,2356.8,4.58]
[1728052278782,3.2078,2357.1,2356.5,0.3873]
[1728052278990,3.2078,2357.1,2357.0,0.42433]
[1728052279279,3.63212,2357.1,2356.5,4.9673]
[1728052279790,3.2078,2357.1,2356.5,4.9673]
[1728052279973,3.2078,2356.8,2356.7,0.42438]
[1728052280175,3.2078,2356.8,2356.3,0.3998]
[1728052280483,3.2078,2356.8,2356.5,0.4244]
[1728052280778,7.87537,2356.8,2356.6,0.4244]
[1728052280979,3.2078,2356.8,2356.7,0.42438]
[1728052282086,3.2078,2356.8,2356.2,4.58]
[1728052282274,3.2078,2356.5,2356.0,1.06127]
[1728052282583,3.2078,2356.2,2356.0,0.4245]
[1728052282982,3.2078,2356.2,2356.1,0.42449]
[1728052283374,3.2078,2356.5,2356.1,4.244]
[1728052283579,3.2078,2356.5,2356.4,0.42443]
[1728052284681,3.2078,2356.5,2356.0,1.06126]
[1728052285189,3.2078,2356.5,2356.2,0.42446]
[1728052285385,3.2078,2356.5,2355.9,3.2078]
[1728052285587,3.2078,2356.2,2356.0,0.42449]
[1728052285792,3.2078,2356.2,2356.1,0.42449]
[1728052286482,3.2078,2356.2,2355.8,1.06136]
[1728052286677,3.2078,2356.2,2356.0,0.42449]
[1728052287294,3.2078,2356.2,2356.1,0.42449]
[1728052287880,3.2078,2356.5,2356.0,0.42451]
[1728052288082,3.2078,2356.5,2355.9,5.64131]
[1728052288083,3.2078,2356.5,2356.4,0.42443]
[1728052288291,3.2078,2356.9,2356.8,0.42436]
[1728052288482,3.2078,2357.3,2357.2,0.42429]
[1728052288797,3.2078,2357.3,2356.8,4.58]
[1728052289090,3.63208,2357.3,2356.9,0.42434]
[1728052289277,3.2078,2357.3,2357.2,0.42429]
[1728052289477,7.4502,2357.3,2356.1,1.09595996]
[1728052289678,3.2078,2356.4,2355.9,0.4049]
[1728052289884,3.2078,2356.1,2355.6,0.4232]
[1728052290092,3.2078,2356.1,2355.8,0.42454]
[1728052290387,3.63229,2356.1,2355.6,0.84777]
[1728052290582,3.2078,2355.8,2355.3,0.4049]
[1728052290990,3.2078,2355.5,2355.4,0.42462]
[1728052291191,3.2078,2355.9,2355.4,4.2456]
[1728052291380,3.2078,2355.9,2355.3,0.4049]
[1728052291587,3.2078,2355.9,2355.8,0.42454]
[1728052291893,3.2078,2355.9,2355.5,0.42458]
[1728052292082,3.2078,2355.9,2355.3,0.4049]
[1728052292280,3.2078,2355.9,2355.8,0.42454]
[1728052292789,0.3995,2356.5,2356.1,0.42449]
[1728052292790,3.2078,2356.2,2356.1,0.42449]
[1728052292988,3.2078,2356.5,2356.4,0.42443]
[1728052293486,3.2078,2356.8,2356.4,4.244]
[1728052293686,3.2078,2356.8,2356.7,0.42438]
[1728052293895,3.2078,2357.8,2356.5,13.21982265]
[1728052294088,3.2078,2357.8,2357.0,1.06082]
[1728052294298,3.2078,2358.2,2357.2,4.58]
[1728052294589,3.2078,2358.2,2357.1,3.6149]
[1728052294590,3.2078,2358.9,2357.8,4.58]
[1728052294786,3.2078,2358.9,2357.9,0.7985]
[1728052294984,3.2078,2358.9,2357.9,6.36773859]
[1728052295186,5.0002,2359.1,2357.9,0.7985]
[1728052295187,3.2078,2358.5,2357.9,0.7985]
[1728052295598,2.5627,2358.5,2358.4,0.42407]
[1728052295889,0.4231,2359.3,2358.5,0.42406]
[1728052295890,3.2078,2358.9,2358.5,0.42406]
[1728052296093,3.2078,2359.2,2358.7,0.424]
[1728052296389,3.2078,2359.2,2358.8,0.424]
[1728052296687,3.63174,2359.2,2358.5,0.42405]
[1728052296888,3.2078,2358.9,2358.2,3.2078]
[1728052297094,3.2078,2359.2,2359.0,0.42395]
[1728052297397,3.2078,2359.2,2358.3,1.06022]
[1728052297398,3.2078,2359.2,2358.6,0.42404]
[1728052297689,3.2078,2358.8,2358.7,0.42402]
[1728052297889,3.2078,2358.8,2358.3,3.2078]
[1728052298083,3.2078,2359.1,2358.8,0.42399]
[1728052298284,3.2078,2359.1,2358.6,0.42403]
[1728052298489,3.2078,2359.1,2358.1,4.58]
[1728052298684,3.2078,2359.1,2358.6,0.42403]
[1728052298989,3.2078,2358.7,2358.0,3.2078]
[1728052299298,3.2078,2358.7,2358.6,0.42404]
[1728052299495,3.2078,2359.1,2358.4,0.42407]
[1728052299690,3.2078,2359.1,2358.3,3.2078]
[1728052299996,3.2078,2359.1,2358.9,0.42398]
[1728052300294,3.2078,2359.1,2358.7,0.42401]
[1728052300799,3.2078,2359.1,2358.3,1.06024]
[1728052301186,3.2078,2359.1,2358.2,3.2078]
[1728052301388,3.2078,2358.1,2357.0,1.64393995]
[1728052301587,3.2078,2358.1,2356.5,3.2078]
[1728052301588,3.2078,2357.4,2356.9,1.64393995]
[1728052301786,4.58,2357.3,2356.6,3.2078]
[1728052301989,3.2078,2357.1,2356.5,0.4059]
[1728052302197,3.2078,2357.4,2357.0,3.2078]
[1728052302492,3.2078,2357.4,2356.8,4.58]
[1728052302697,3.2078,2357.4,2356.5,0.4059]
[1728052302896,3.2078,2357.4,2356.8,5.91854096]
[1728052303100,3.2078,2357.4,2356.7,7.7878]
[1728052303393,3.2078,2357.9,2357.0,8.21213]
[1728052303597,3.2078,2357.9,2357.0,3.63212]
[1728052303995,3.2078,2357.9,2357.1,0.4243]
[1728052304200,3.2078,2357.6,2356.7,4.58]
[1728052304396,3.2078,2357.6,2356.9,0.42433]
[1728052304691,3.2078,2357.9,2357.0,0.424]
[1728052304887,3.2078,2357.6,2357.0,0.424]
[1728052305286,5.41107,2358.5,2356.5,0.4059]
[1728052305287,3.2078,2357.3,2356.5,0.4059]
[1728052305695,3.2078,2357.3,2356.6,5.58250926]
[1728052305894,3.2078,2357.3,2356.5,0.4059]
[1728052306404,3.2078,2357.3,2356.6,0.4244]
[1728052306594,3.2078,2357.3,2356.5,4.03811]
[1728052306786,3.2078,2357.3,2356.5,3.6137]
[1728052306991,3.2078,2357.3,2356.6,5.51908887]
[1728052307185,3.2078,2357.3,2356.6,5.94348887]
[1728052307395,3.2078,2357.3,2356.5,3.6137]
[1728052307599,3.2078,2357.3,2356.7,0.42438]
[1728052307993,3.2078,2357.6,2356.7,8.8224]
[1728052308197,3.2078,2357.6,2356.8,8.77399903]
[1728052308404,3.2078,2357.6,2357.1,0.42429]
[1728052308602,3.2078,2357.6,2356.8,8.77399903]
[1728052308802,0.4148,2358.0,2357.4,0.42425]
[1728052308803,3.2078,2357.9,2357.4,0.42425]
[1728052309103,3.2078,2357.9,2357.4,0.42424]
[1728052309801,3.2078,2357.9,2357.5,0.42423]
[1728052310095,3.2078,2357.9,2357.1,3.2078]
[1728052310504,3.2078,2357.9,2357.4,0.42425]
[1728052310694,3.2078,2357.9,2357.1,3.2078]
[1728052310695,3.2078,2357.9,2357.5,0.42423]
[1728052311217,0.4148,2358.0,2356.6,3.2078]
[1728052311218,3.2078,2357.6,2356.6,3.2078]
[1728052311496,0.4148,2358.0,2356.3,8.35703822]
[1728052311497,3.2078,2357.3,2356.3,8.35703822]
[1728052311696,3.2078,2357.3,2356.7,3.2078]
[1728052311896,3.2078,2357.3,2356.3,5.14923822]
[1728052311897,3.2078,2357.3,2356.3,5.004]
[1728052312097,3.2078,2356.6,2356.3,0.42444]
[1728052312411,3.2078,2356.6,2355.9,0.3952]
[1728052312595,3.2078,2356.6,2356.4,0.42443]
[1728052312793,3.2078,2356.6,2355.9,1.45649]
[1728052312794,3.2078,2356.6,2356.0,4.26907]
[1728052312997,3.2078,2356.6,2356.0,1.06127]
[1728052313399,0.4281,2357.0,2356.5,0.42442]
[1728052313400,3.2078,2356.9,2356.5,0.42442]
[1728052313601,3.2078,2356.9,2356.3,0.42445]
[1728052313805,3.2078,2356.6,2356.0,5.44188762]
[1728052313998,3.2078,2356.3,2355.9,0.3952]
[1728052314297,3.2078,2356.3,2356.2,0.42447]
[1728052314503,3.2078,2356.3,2355.9,0.3952]
[1728052314897,3.2078,2356.3,2356.0,0.42451]
[1728052315097,3.2078,2356.3,2356.2,0.42447]
[1728052315298,3.2078,2356.3,2355.9,0.3952]
[1728052315501,3.2078,2356.3,2356.2,0.42447]
[1728052315702,3.2078,2356.9,2356.0,1.06127]
[1728052316003,3.2078,2356.9,2356.2,1.06117]
[1728052316501,3.2078,2356.9,2356.0,3.2078]
[1728052316694,3.2078,2356.9,2356.8,0.42436]
[1728052316899,3.2078,2356.9,2356.7,0.42437]
[1728052317093,3.2078,2356.9,2356.3,3.2078]
[1728052317298,3.2078,2356.9,2356.8,0.42436]
[1728052318805,3.2078,2357.2,2356.4,1.06109]
[1728052318994,3.2078,2357.2,2357.1,0.42431]
[1728052320807,3.5993,2357.8,2357.1,10.66671]
[1728052321010,3.2078,2358.1,2358.0,0.42413]
[1728052321503,3.2078,2359.0,2358.3,1.06022]
[1728052321701,3.2078,2359.0,2358.3,4.58]
[1728052321897,3.2078,2358.6,2358.4,0.42407]
[1728052322102,4.24,2358.5,2358.1,0.42412]
[1728052322401,3.2078,2358.3,2358.2,0.42411]
[1728052322605,3.2078,2358.6,2358.5,0.42406]
[1728052322794,3.2078,2358.6,2358.0,1.06037]
[1728052322999,3.2078,2358.3,2358.2,0.42411]
[1728052323398,3.2078,2358.3,2357.8,1.06044]
[1728052323603,3.2078,2358.3,2358.0,0.42414]
[1728052323802,3.2078,2358.3,2357.7,3.6139]
[1728052324003,3.2078,2358.3,2357.7,0.4061]
[1728052324210,3.2078,2358.3,2358.2,0.42411]
[1728052326104,0.42411,2358.2,2356.9,4.71275996]
[1728052326305,3.2078,2357.6,2357.1,1.06078]
[1728052326502,3.2078,2357.6,2357.5,0.42424]
[1728052326703,3.2078,2358.0,2357.6,0.42421]
[1728052327002,3.2078,2358.0,2357.2,1.06073]
[1728052327216,3.2078,2358.0,2357.7,0.42419]
[1728052327399,3.2078,2358.0,2357.2,3.2078]
[1728052327603,3.2078,2358.0,2357.6,0.42421]
[1728052327909,3.2078,2358.0,2357.7,0.42419]
[1728052328300,3.63195,2358.0,2357.6,0.42421]
[1728052328498,3.63195,2358.0,2357.0,6.04921]
[1728052328499,3.2078,2357.7,2357.0,1.46921]
[1728052328810,3.2078,2357.7,2357.0,0.4084]
[1728052329006,3.63201,2357.7,2357.0,0.4084]
[1728052329304,0.42424,2357.6,2357.1,0.42431]
[1728052329507,3.2078,2357.4,2357.2,0.42429]
[1728052329809,3.2078,2357.4,2356.9,0.42434]
[1728052329810,3.63207,2357.4,2356.9,0.42434]
[1728052330003,3.2078,2357.1,2356.4,0.39]
[1728052330312,3.63211,2357.1,2356.6,0.42439]
[1728052330606,3.63211,2357.1,2356.4,0.39]
[1728052330607,3.2078,2357.1,2356.4,0.39]
[1728052330813,3.2078,2357.1,2356.7,0.42438]
[1728052331101,3.2078,2357.1,2356.4,0.39]
[1728052331306,3.2078,2356.8,2356.1,1.06121]
[1728052331507,3.2078,2356.8,2355.9,3.6288]
[1728052331702,3.2078,2356.8,2356.5,0.42441]
[1728052331911,3.63217,2356.8,2356.3,0.42445]
[1728052332216,0.42446,2356.3,2355.8,0.42453]
[1728052332404,3.2078,2356.0,2355.9,0.42452]
[1728052332701,3.2078,2356.0,2355.4,1.0615]
[1728052332905,3.2078,2356.0,2355.9,0.42452]
[1728052334203,3.2078,2356.4,2355.9,4.2448]
[1728052334410,3.2078,2356.1,2355.9,0.42451]
[1728052335105,3.2078,2356.1,2355.4,1.06151]
[1728052335298,3.2078,2356.1,2355.9,0.42451]
[1728052335505,3.6323,2356.1,2355.6,0.42456]
[1728052335803,3.2078,2355.7,2355.6,0.42456]
[1728052336802,3.2078,2356.0,2355.6,0.42456]
[1728052337005,3.2078,2356.0,2355.5,1.06149]
[1728052337201,3.2078,2356.4,2355.7,5.43152746]
[1728052337404,3.2078,2356.4,2356.3,0.42445]
[1728052337806,4.9865,2357.2,2356.3,4.244]
[1728052337807,3.2078,2356.7,2356.3,4.244]
[1728052338105,3.2078,2357.0,2356.5,4.58]
[1728052338307,3.6315,2357.3,2357.1,0.4243]
[1728052338503,3.6315,2357.3,2356.7,1.06095]
[1728052338504,3.6315,2357.3,2357.2,0.42429]
[1728052338700,3.6315,2357.3,2356.5,8.84885]
[1728052339104,3.6315,2357.3,2356.5,8.84884]
[1728052339415,3.2078,2357.6,2356.6,5.64183931]
[1728052339608,3.2078,2357.6,2357.1,0.4243]
[1728052339809,3.2078,2357.6,2356.7,4.26875]
[1728052340015,0.4237,2357.7,2356.7,0.4077]
[1728052340016,3.2078,2357.3,2356.7,0.4077]
[1728052340209,3.2078,2357.3,2357.2,0.42429]
[1728052340514,3.2078,2357.3,2357.1,0.4243]
[1728052340810,3.2078,2357.3,2357.1,0.42431]
[1728052341122,3.2078,2357.3,2356.9,0.42434]
[1728052341413,3.2078,2357.3,2356.4,3.2078]
[1728052341604,3.2078,2357.3,2356.9,0.42434]
[1728052341804,3.2078,2357.3,2357.1,0.42431]
[1728052342005,3.2078,2357.3,2356.7,1.06094]
[1728052342207,3.2078,2357.3,2356.5,5.62353098]
[1728052342406,3.2078,2357.0,2356.7,0.42437]
[1728052342804,3.2078,2357.0,2356.2,0.4077]
[1728052343011,1.06066,2357.4,2356.2,0.4077]
[1728052343012,3.2078,2356.7,2356.2,0.4077]
[1728052343205,3.2078,2356.7,2356.4,0.42442]
[1728052343414,3.2078,2356.7,2356.5,0.4244]
[1728052343613,3.2078,2356.7,2356.2,0.4077]
[1728052343915,3.2078,2356.7,2356.6,0.4244]
[1728052344112,3.2078,2357.0,2356.7,0.42438]
[1728052344307,3.63213,2357.0,2356.6,0.42439]
[1728052344505,0.42435,2356.9,2356.5,0.4244]
[1728052344704,3.2078,2357.0,2356.7,0.42437]
[1728052345119,3.2078,2357.3,2356.9,4.58]
[1728052345411,3.6315,2357.7,2357.2,4.58]
[1728052345607,3.6315,2357.7,2357.0,1.06082]
[1728052345808,3.6315,2357.7,2357.4,0.42425]
[1728052346012,4.05571,2357.7,2357.3,0.42427]
[1728052346208,4.05571,2357.7,2356.8,3.2078]
[1728052346209,3.6315,2357.7,2356.8,3.2078]
[1728052346415,3.2078,2357.4,2357.1,0.42429]
[1728052346816,3.2078,2357.4,2357.2,0.42428]
[1728052347022,0.4237,2357.7,2357.0,1.06082]
[1728052347219,0.4237,2357.7,2357.5,0.42423]
[1728052347416,0.4237,2357.7,2357.0,1.06082]
[1728052347717,0.4237,2357.7,2356.6,9.26447]
[1728052347917,0.4237,2357.7,2357.3,0.42426]
[1728052348118,0.4237,2357.7,2357.4,0.42425]
[1728052348423,3.2078,2357.5,2356.7,1.06095]
[1728052348715,3.2078,2357.5,2357.3,0.42427]
[1728052348922,3.2078,2357.5,2357.4,0.42425]
[1728052349120,0.4237,2357.7,2357.0,0.3937]
[1728052349414,0.4237,2357.7,2357.5,0.42423]
[1728052349620,0.84791,2357.7,2357.3,0.42426]
[1728052349813,0.84791,2357.7,2357.0,0.3937]
[1728052349814,3.2078,2357.5,2357.0,0.3937]
[1728052350014,0.42426,2357.4,2356.7,1.06096]
[1728052350221,3.2078,2357.5,2356.6,1.47667]
[1728052350222,3.2078,2357.5,2356.8,1.06091]
[1728052350411,3.2078,2357.2,2356.4,1.45478]
[1728052350609,3.2078,2357.2,2356.4,0.3937]
[1728052350810,3.2078,2356.6,2356.3,0.42444]
[1728052351022,3.2078,2356.6,2356.5,0.42442]
[1728052352123,3.2078,2357.0,2356.4,1.06108]
[1728052352618,3.2078,2357.0,2356.9,0.42434]
[1728052352814,3.2078,2357.0,2356.4,1.06108]
[1728052353025,3.2078,2357.0,2356.8,0.42435]
[1728052353215,3.2078,2357.0,2356.7,0.42437]
[1728052353521,3.2078,2357.0,2355.9,1.0613]
[1728052353726,3.2078,2356.4,2355.8,0.3937]
[1728052353913,0.4129,2356.9,2355.7,1.06137]
[1728052353914,3.63231,2356.1,2355.7,0.42455]
[1728052354114,3.2078,2356.1,2355.9,0.42451]
[1728052354317,3.2078,2356.4,2356.2,0.42446]
[1728052354513,3.2078,2356.4,2355.7,1.06139]
[1728052354514,3.2078,2356.4,2356.3,0.42445]
[1728052354724,3.2078,2356.4,2355.7,1.06141]
[1728052355020,3.2078,2356.1,2355.5,1.06148]
[1728052355323,3.2078,2356.1,2355.4,1.0615]
[1728052355521,3.63229,2356.1,2355.7,0.42455]
[1728052355723,3.2078,2355.8,2355.2,0.4078]
[1728052356029,0.3933,2356.7,2354.4,4.58]
[1728052356030,3.2078,2355.3,2354.4,4.58]
[1728052356330,3.2078,2355.3,2354.9,0.42469]
[1728052356625,3.2078,2355.0,2354.4,0.4273]
[1728052357022,3.2078,2355.0,2354.7,0.42473]
[1728052357316,3.2078,2355.0,2354.5,0.42477]
[1728052357516,3.2078,2355.0,2354.1,4.58]
[1728052357713,3.2078,2354.7,2354.6,0.42476]
[1728052357918,3.2078,2355.0,2354.7,0.42473]
[1728052358117,3.63249,2355.0,2354.5,0.42477]
[1728052358321,3.63249,2355.0,2354.1,4.58]
[1728052358322,3.2078,2355.0,2354.2,3.2078]
[1728052358625,3.2078,2354.7,2354.0,3.2078]
[1728052358928,3.2078,2354.7,2353.9,3.2078]
[1728052359224,3.2078,2354.7,2353.8,4.58]
[1728052359421,3.2078,2354.7,2354.5,0.42477]
[1728052359822,3.2078,2354.7,2353.8,4.58]
[1728052360027,3.2078,2354.7,2354.6,0.42476]
[1728052360320,3.2078,2354.7,2354.2,1.06209]
[1728052360321,3.2078,2355.0,2354.2,1.06209]
[1728052360822,3.2078,2355.0,2354.4,3.2078]
[1728052361022,3.2078,2355.0,2354.8,0.42472]
[1728052361214,3.2078,2355.0,2354.4,4.26976]
[1728052361417,3.2078,2355.0,2354.5,1.06195]
[1728052361727,3.2078,2355.0,2354.8,0.42471]
[1728052361930,3.2078,2355.0,2354.9,0.42471]
[1728052362434,3.2078,2355.6,2355.0,1.06173]
[1728052362620,0.3979,2355.8,2355.7,0.42456]
[1728052363019,0.3979,2355.8,2355.2,1.06161]
[1728052363218,3.2078,2355.9,2355.8,0.42454]
[1728052363627,3.2078,2356.2,2355.1,5.64164]
[1728052363822,3.2078,2356.2,2355.9,0.42452]
[1728052364128,7.7878,2356.2,2355.2,0.42465]
[1728052364432,3.2078,2355.5,2355.1,0.42466]
[1728052364738,3.2078,2355.5,2354.7,6.05073]
[1728052364926,3.2078,2355.5,2355.4,0.42462]
[1728052365224,3.2078,2355.9,2355.1,3.2078]
[1728052365432,3.2078,2355.6,2355.0,1.06172]
[1728052365626,3.2078,2355.6,2354.7,8.1967]
[1728052365923,3.2078,2355.9,2355.7,0.42455]
[1728052366125,3.2078,2355.9,2355.0,4.58]
[1728052366330,3.2078,2355.9,2355.5,0.42459]
[1728052366514,3.2078,2355.9,2355.8,0.42454]
[1728052366719,0.4286,2356.3,2355.9,1.06129]
[1728052366720,3.2078,2356.3,2355.9,1.06129]
[1728052366925,4.58,2357.2,2355.9,1.06129]
[1728052366926,3.2078,2356.7,2356.0,4.26907]
[1728052367127,3.2078,2356.7,2356.6,0.4244]
[1728052367425,3.2078,2356.7,2356.5,0.42441]
[1728052367733,3.2078,2356.7,2356.6,0.4244]
[1728052368030,3.2078,2356.7,2356.5,0.42441]
[1728052368420,7.451,2356.7,2356.4,0.42442]
[1728052368616,3.2078,2356.7,2355.7,7.7878]
[1728052368825,3.2078,2356.7,2356.6,0.4244]
[1728052369030,0.4296,2357.0,2356.3,1.06111]
[1728052369332,3.2078,2356.8,2356.0,3.2078]
[1728052369524,3.2078,2356.8,2356.2,1.06118]
[1728052369719,3.2078,2356.8,2356.1,1.06123]
[1728052370027,3.2078,2356.8,2356.0,3.2078]
[1728052370228,3.2078,2356.8,2356.0,0.42451]
[1728052370434,3.2078,2356.8,2356.4,0.42442]
[1728052370822,3.2078,2356.5,2355.7,1.0614]
[1728052371027,3.2078,2356.5,2356.1,0.42448]
[1728052371223,3.2078,2356.5,2355.5,1.88676]
[1728052371224,3.2078,2356.2,2355.5,0.8253]
[1728052371428,3.63228,2356.2,2355.6,0.42458]
[1728052371633,3.63228,2356.2,2355.5,0.4153]
[1728052371634,3.6219,2356.2,2355.5,0.4153]
[1728052371926,3.2078,2356.6,2355.9,1.06132]
[1728052372128,3.2078,2356.6,2355.8,8.84913]
[1728052372326,3.2078,2356.6,2356.2,0.42447]
[1728052372530,3.2078,2356.6,2355.8,1.06136]
[1728052372924,3.2078,2356.3,2356.0,0.4245]
[1728052373528,3.2078,2356.3,2355.5,3.6231]
[1728052373725,3.2078,2356.3,2355.9,0.42452]
[1728052374031,3.2078,2356.3,2356.0,0.4245]
[1728052374736,3.2078,2356.3,2355.7,0.42456]
[1728052374936,3.2078,2356.3,2356.0,0.4245]
[1728052375132,3.2078,2356.6,2355.8,4.58]
[1728052375441,3.2078,2356.6,2356.5,0.42442]
[1728052375624,3.2078,2356.9,2356.1,1.06123]
[1728052375831,3.2078,2356.9,2356.7,0.42438]
[1728052376229,4.2432,2356.8,2356.7,0.42438]
[1728052376432,4.2432,2356.8,2356.3,1.06114]
[1728052376736,3.2078,2356.9,2356.7,0.42437]
[1728052377140,4.2432,2356.8,2356.7,0.42437]
[1728052377739,0.8334,2357.2,2357.1,0.42431]
[1728052377740,3.2078,2357.2,2357.1,0.42431]
[1728052377938,1.06043,2357.9,2356.8,1.06091]
[1728052377939,3.2078,2357.5,2356.8,1.06091]